Cogmind - Beta 15 @@@ ROGUE MODE // 2025.05.16 @ 14:43:16 Player: AkimboAoki Result: Destroyed by as-76826 with Assembled Rifle Performance ------------- Evolutions (0) 0 Regions Visited (3) 600 Robots Destroyed (10) 50 Value Destroyed (379) 379 Prototype IDs (23) 460 Alien Tech Used (0) 0 Bonus (300) 300 TOTAL SCORE: 1789 Bonus ------- Aligned with FarCom 300 Cogmind --------- Core Integrity 0/250 Matter 267/300 Energy 249/250 System Corruption 12% Temperature Cool (0) Movement Rolling (95) Ox1 Location -10/Exiles Parts ------- > --- POWER (1) -------- Ion Engine > --- PROPULSION (2) --- Aluminum Leg Wheel > --- UTILITY (2) ------ Small Storage Unit Sensor Array > --- WEAPON (2) ------- (None) > --- INVENTORY (8) ---- Ion Engine Light Ion Engine Large Storage Unit Superbattery (49) Experimental Sensor Array Rocket Launcher Proton Bomb Trap Proton Bomb Trap Peak State ------------ > --- POWER ------------ Ion Engine > --- PROPULSION ------- Aluminum Leg Aluminum Leg > --- UTILITY ---------- Small Storage Unit Tractor Beam > --- WEAPON ----------- EM Pulse Gun Assault Rifle > --- INVENTORY -------- Light Ion Engine Aluminum Leg Aluminum Leg Aluminum Leg Aluminum Leg Large Storage Unit Assault Rifle Signal Generator [Rating: 8] Favorites ----------- Power Ion Engine Engine Ion Engine Propulsion Aluminum Leg Leg Aluminum Leg Wheel Wheel Utility Small Storage Unit Device Sensor Array Storage Small Storage Unit Weapon Assault Rifle Energy Gun EM Pulse Gun Ballistic Gun Assault Rifle Launcher Grenade Launcher Build | -11 -10 -10 -10 ------- Run | Yrd Mat Min Exi Slots Evolved . | . . . . Power . | . . . . Propulsion . | . . . . Utility . | . . . . Weapon . | . . . . Parts Attached 21 | 7 2 12 . Power 2 | 1 . 1 . Engine 2 | 1 . 1 . Core . | . . . . Reactor . | . . . . Propulsion 9 | 2 . 7 . Treads . | . . . . Leg 8 | 2 . 6 . Wheel 1 | . . 1 . Hover . | . . . . Flight . | . . . . Utility 4 | 2 . 2 . Device 3 | 1 . 2 . Storage 1 | 1 . . . Processor . | . . . . Hackware . | . . . . Protection . | . . . . Artifact . | . . . . Weapon 6 | 2 2 2 . Energy Gun 1 | . 1 . . Energy Cannon . | . . . . Ballistic Gun 2 | 2 . . . Ballistic Cannon . | . . . . Launcher 3 | . 1 2 . Special Weapon . | . . . . Impact Weapon . | . . . . Slashing Weapon . | . . . . Piercing Weapon . | . . . . Special Melee Weapon . | . . . . Unidentified Prototypes . | . . . . Corrupted Parts 2 | . . 2 . System Corruption 11 | . . 11 . Parts Lost 11 | . 1 10 . Power . | . . . . Propulsion 5 | . . 5 . Utility 1 | . . 1 . Weapon 5 | . 1 4 . Highest Loss Streak 5 | . 1 5 . To Critical Strikes . | . . . . Average Backups 6 | 4 7 6 5 Power 1 | . 1 2 2 Propulsion 2 | 2 4 1 . Utility 1 | . . 2 2 Weapon . | . 1 . . Tool/Special . | . . . . Unused Backups 12 | . 6 2 4 Power 2 | . . . 2 Propulsion 6 | . 6 . . Utility 4 | . . 2 2 Weapon . | . . . . Tool/Special . | . . . . Average Slot Usage (%) 94 | . 100 94 83 Engine 14 | . 14 14 14 Leg 24 | . 28 24 14 Wheel 3 | . . 1 14 Device 14 | . 14 14 14 Storage 14 | . 14 14 14 Energy Gun 3 | . 4 3 . Ballistic Gun 10 | . 17 10 . Launcher 9 | . 6 10 12 Peak Build Rating 8 | 7 7 8 8 Average Rating 7 | 5 6 7 7 On Entrance 5 | . 7 7 8 Naked Turns . | . . . . Heaviest Build 16 | 15 16 16 15 Greatest Support 20 | 20 20 20 10 Greatest Overweight (x) 4 | 1 . 4 1 Average Overweight (x) . | . . . 1 Largest Inventory Capacity 8 | 8 8 8 8 Average Capacity 7 | 7 8 8 8 Most Carried 8 | 7 8 8 8 Average Carried 7 | 4 7 7 7 Final Capacity 8 | 8 8 8 8 Final Carried 8 | 7 8 7 8 Class Distribution -------------------- 100% | Mutant Dominant Class ---------------- Mutant | -10/Materials Mutant | -10/Mines Mutant | -10/Exiles Resources | -11 -10 -10 -10 ----------- Run | Yrd Mat Min Exi Matter Collected 672 | 276 152 244 . Remotely 385 | 174 152 59 . Salvage Created 418 | 91 201 126 . Parts 15 | 2 11 2 . Haulers Intercepted 1 | . 1 . . Recyclers Shooed . | . . . . Parts Field Recycled . | . . . . Retrieved Matter . | . . . . Parts Self-Destructed . | . . . . Prevented . | . . . . Kills | -11 -10 -10 -10 ------- Run | Yrd Mat Min Exi Combat Hostiles Destroyed 12 | . 4 8 . Guns 7 | . 2 5 . AOE 5 | . 2 3 . Classes Destroyed 6 | 1 3 2 . Hauler 1 | . 1 . . Recycler 1 | 1 . . . Watcher 1 | . 1 . . Grunt 5 | . 4 1 . Demolisher 2 | . . 2 . Assembled 5 | . . 5 . Best Kill Streak 2 | 1 2 2 . Combat Bots Only 2 | . 2 2 . Max Kills in Single Turn 1 | 1 1 1 . Gunslinging . | . . . . Exploded 1 | . 1 1 . Melee . | . . . . Uniques/NPCs Destroyed . | . . . . Combat | -11 -10 -10 -10 -------- Run | Yrd Mat Min Exi Hostile Shots Fired 90 | . 25 62 3 Missed 35 | . 10 23 2 Hits 55 | . 15 39 1 Melee 8 | . . 8 . Projectile 47 | . 15 31 1 AOE 9 | . . 9 . Critical Strikes 1 | . . 1 . Damage Taken 1372 | . 286 1028 58 Core 259 | . 14 235 10 Absorbed by Shields . | . . . . Core Remaining (%) 100 | 100 . . . Volleys Fired 58 | 1 40 17 . Largest 2 | 2 2 2 . Hottest 60 | 40 40 60 . Shots Fired 68 | 2 41 24 1 Gun 55 | 2 36 17 . Cannon . | . . . . Launcher 13 | . 5 7 1 Special . | . . . . Kinetic 43 | 2 29 12 . Thermal . | . . . . Explosive 13 | . 5 7 1 Electromagnetic 12 | . 7 5 . Robot Hit Streak 9 | 2 9 9 . Robot Miss Streak 4 | . 4 2 . Penetration Max . | . . . . Secondary Targets . | . . . . Shots Hit Robots 46 | 2 26 18 . Core Hits 31 | 1 12 18 . Critical Kills 1 | 1 . . . Critical Parts Destroyed . | . . . . Critical Strikes 1 | 1 . . . Destroy 1 | 1 . . . Melee Attacks . | . . . . Impact . | . . . . Slashing . | . . . . Piercing . | . . . . Sneak Attacks . | . . . . Combat Hostiles . | . . . . Follow-up Attacks . | . . . . Damage Inflicted 941 | 25 667 249 . Guns 488 | 25 303 160 . Cannons . | . . . . Explosions 453 | . 364 89 . Melee . | . . . . Ramming . | . . . . Kinetic 420 | 25 270 125 . Thermal . | . . . . Explosive 453 | . 364 89 . Electromagnetic 68 | . 33 35 . Impact . | . . . . Slashing . | . . . . Piercing . | . . . . Highest Corruption 12 | . 1 12 12 Average Corruption 4 | . 1 3 12 Corruption Purged . | . . . . Corruption Blocked . | . . . . Effects 26 | . . 17 9 Message Errors 9 | . . 5 4 Matter Fused 7 | . . 4 3 Heat Flow Errors 4 | . . 3 1 Energy Discharges 3 | . . 3 . Data Loss (minor) 1 | . . 1 . Misfires 2 | . . 1 1 Overload Shots . | . . . . Overflow Damage 63 | . 60 3 . Projectiles . | . . . . Explosions 63 | . 60 3 . Melee . | . . . . Knockbacks . | . . . . Impact . | . . . . Kinetic . | . . . . Secondary . | . . . . Self-Inflicted Damage 192 | . 82 62 48 Shots 5 | . 1 3 1 Rammed . | . . . . Targets Rammed . | . . . . Kicked . | . . . . Crushed . | . . . . Highest Temperature 271 | . 18 271 170 Average Temperature 117 | . 7 139 90 Received Heat Transfer 147 | . 117 30 . Siege Activations . | . . . . Martial Activations . | . . . . Shielding Activations . | . . . . Robots Disrupted . | . . . . Combat Hostiles . | . . . . Robots Corrupted . | . . . . Combat Hostiles . | . . . . Parts Fried . | . . . . Impact Corruptions . | . . . . Robots Melted . | . . . . Combat Hostiles . | . . . . Parts Melted . | . . . . Heat Transferred . | . . . . Parts Sabotaged . | . . . . Parts Stolen . | . . . . Parts Stripped . | . . . . Power Chain Reactions . | . . . . Alert | -11 -10 -10 -10 ------- Run | Yrd Mat Min Exi Maximum Alert Level . | . . . . Low Security (%) 100 | 100 100 100 . Level 1 . | . . . . Level 2 . | . . . . Level 3 . | . . . . Level 4 . | . . . . Level 5 . | . . . . High Security . | . . . . Max Security . | . . . . Peak Influence 106 | 5 106 80 . Initial 17 | . . 17 . Average 19 | . 45 9 . Influence Increases 376 | 5 213 158 . Destroy 0b10 Robot/C 140 | . 80 60 . Destroy 0b10 Robot/NC 15 | 5 10 . . Destroy Leader 44 | . 24 20 . Trap Triggered on 0b10 20 | . . 20 . Successful Hack 8 | . 8 . . Disable Machine 60 | . 45 15 . Destroy Structure 74 | . 46 28 . Lose Combat Pursuer 15 | . . 15 . Influence Decreases 376 | 5 168 203 . Entered New Map 28 | . . 28 . Time Decay 288 | 5 158 125 . Lost Part 60 | . 10 50 . Squads Dispatched . | . . . . Investigation . | . . . . Extermination . | . . . . Reinforcement . | . . . . Assault . | . . . . Garrison . | . . . . Intercept . | . . . . Searches Triggered . | . . . . Construction Impeded . | . . . . Haulers Reinforced . | . . . . Active Scanning Responses . | . . . . Cargo Convoy Interrupts . | . . . . Stealth | -11 -10 -10 -10 --------- Run | Yrd Mat Min Exi Distress Signals . | . . . . Communications Jammed . | . . . . Distress Signals . | . . . . Times Spotted 33 | . 10 21 2 Peak Tracking Total 11 | . 2 11 9 Tactical Retreats 4 | . . 4 . Traps | -11 -10 -10 -10 ------- Run | Yrd Mat Min Exi Traps Triggered 1 | . 1 . . Indirectly . | . . . . Trap Hack Attempts . | . . . . Triggered . | . . . . Disarmed . | . . . . Reprogrammed . | . . . . Reused 2 | . . 2 . Traps Extracted . | . . . . Installed 2 | . . 2 . Triggered 2 | . . 2 . Most Traps Carried 2 | . . 2 2 Machines | -11 -10 -10 -10 ---------- Run | Yrd Mat Min Exi Machines Disabled 5 | . 3 1 1 Max in Single Turn 1 | . 1 1 1 Machines Repaired . | . . . . Machines Dismantled . | . . . . Machines Sabotaged . | . . . . Overloaded Fab Kills . | . . . . Hacking | -11 -10 -10 -10 --------- Run | Yrd Mat Min Exi Machines Accessed 3 | . 1 1 1 Terminals 2 | . 1 1 . Fabricators . | . . . . Repair Stations . | . . . . Recycling Units . | . . . . Scanalyzers . | . . . . Garrison Access . | . . . . Total Hacks 8 | . 5 2 1 Successful 5 | . 3 1 1 Failed 3 | . 2 1 . Catastrophic 2 | . 1 1 . Database Lockouts . | . . . . Manual 7 | . 4 2 1 Terminals 7 | . 5 2 . Fabricators . | . . . . Repair Stations . | . . . . Recycling Units . | . . . . Scanalyzers . | . . . . Garrison Access . | . . . . Terminal Hacks 3 | . 2 . 1 Branch Access Points 1 | . 1 . . Locate Traps 1 | . 1 . . Proto ID Catalog 1 | . . . 1 Fabricator Hacks . | . . . . Repair Station Hacks . | . . . . Recycling Unit Hacks . | . . . . Scanalyzer . | . . . . Garrison Access Hacks . | . . . . Unauthorized Hacks 2 | . 1 1 . Terminals 2 | . 1 1 . Botnet 2 | . 1 1 . Fabricators . | . . . . Repair Stations . | . . . . Recycling Units . | . . . . Scanalyzers . | . . . . Garrison Access . | . . . . Data Cores Recovered . | . . . . Used . | . . . . Hacking Detections 2 | . 1 1 . Full Trace Events . | . . . . Feedback Events . | . . . . Feedback Blocked . | . . . . Robot Schematics Acquired . | . . . . Robots Built . | . . . . Authchips . | . . . . Time . | . . . . Total Robot Build Rating . | . . . . Part Schematics Acquired . | . . . . Parts Built . | . . . . Authchips . | . . . . Time . | . . . . Total Part Build Rating . | . . . . Parts Repaired . | . . . . Time . | . . . . Parts Recycled . | . . . . Recycled Matter . | . . . . Retrieved Matter . | . . . . Retrieved Components . | . . . . Parts Scanalyzed . | . . . . Part Schematics Acquired . | . . . . Parts Damaged . | . . . . Bothacking | -11 -10 -10 -10 ------------ Run | Yrd Mat Min Exi Used RIF Installer . | . . . . Robots Hacked . | . . . . Non-combat . | . . . . Combat . | . . . . Robot Hacks Applied . | . . . . Relay Couplers Released . | . . . . Fabnet Peak Effective % . | . . . . Robots Rewired . | . . . . Allies Hacked . | . . . . Hacks Repelled . | . . . . Allies | -11 -10 -10 -10 -------- Run | Yrd Mat Min Exi Total Allies 1 | . . 1 . Largest Group 1 | . . 1 . Highest-Rated Group 31 | . . 31 . Highest-Rated Ally 31 | . . 31 . Total Orders . | . . . . Ally Attacks 12 | . . 12 . Total Damage 149 | . . 149 . Kills 2 | . . 2 . Allies Corrupted . | . . . . Allies Melted . | . . . . Intel | -11 -10 -10 -10 ------- Run | Yrd Mat Min Exi Active Infowar (turns) 911 | . . 682 229 Sensors 911 | . . 682 229 Robot Analysis Total . | . . . . Derelict Logs Recovered 1 | . . 1 . Drone Launches . | . . . . Drone Recoveries . | . . . . Exploration | -11 -10 -10 -10 ------------- Run | Yrd Mat Min Exi Turns Passed 1574 | 88 409 848 229 Spaces Moved 1174 | 59 252 624 239 Core 10 | 9 . 1 . Treads . | . . . . Legs 808 | 50 252 506 . Wheels 356 | . . 117 239 Hover . | . . . . Flight . | . . . . Fastest Speed 50 | 50 120 95 95 Average Speed 113 | 112 120 118 95 Slowest Speed 250 | 120 120 250 95 Overloaded Moves . | . . . . Propulsion Burnouts . | . . . . Robots Hopped . | . . . . Potential Cave-ins . | . . . . Cave-ins Triggered . | . . . . Exploration Rate (%) 49 | 6 44 98 50 Regions Visited 3 Branch Regions 2 Pre-discovered Areas . | . . . . Known Exits Taken 1 | . 1 . . Unknown Exits Taken 2 | 1 . 1 . Scrap Searched 3 | . . 3 . Spaces Dug 5 | . 5 . . Terrain Destroyed 87 | . 44 34 9 Melee . | . . . . Projectile . | . . . . AOE 87 | . 44 34 9 Terrain Rammed . | . . . . Walls Destroyed . | . . . . Machines Disabled . | . . . . Actions | -11 -10 -10 -10 --------- Run | Yrd Mat Min Exi Total 1348 | 75 320 711 242 Wait 49 | 2 13 34 . Move 1171 | 58 251 623 239 Hop . | . . . . Pick Up 28 | 7 8 12 1 Fast Attach 9 | 7 . 2 . Attach 8 | . 1 7 . Detach 1 | . . . 1 Swap 6 | . 1 5 . Drop 16 | . 6 9 1 Fire 58 | 1 40 17 . Melee . | . . . . Ram . | . . . . Kick . | . . . . Crush . | . . . . Escape Stasis . | . . . . Rewire . | . . . . Trap 2 | . . 2 . Miscellaneous . | . . . . Route ------- -11/Scrapyard -10/Materials -10/Mines (discovered 3 exits: [*Mat x2] / *Exi) -10/Exiles (discovered 1 exit: [*Min]) History --------- Turn | Location | Event 9 | -11/Scrapyard | Discovered new exit (range 16) 89 | -11/Scrapyard | Entered Materials 215 | -10/Materials | Discovered new exit (range 8) 319 | -10/Materials | Build established: Mutant 328 | -10/Materials | Identified exit to Mines 498 | -10/Materials | Entered Mines 499 | -10/Mines | Met a Derelict testing a Signal Generator 507 | -10/Mines | Found Signal Generator 588 | -10/Mines | Assembled infested the area 593 | -10/Mines | Assisted by a Guerilla fighting off Assembled 682 | -10/Mines | Found a damaged Exp. Sensor Array with a note attached 684 | -10/Mines | Found Prototype Device 727 | -10/Mines | Lost 5 parts (2n1u2w) 737 | -10/Mines | Received a Rocket Launcher from a helpful Derelict 841 | -10/Mines | Discovered new exit (range 3) 962 | -10/Mines | Found a hidden stash of uninstalled traps 1014 | -10/Mines | Learned Materials non-interactive machine intel 1069 | -10/Mines | Deemed a non-threat by the Exiles lab entrance 1069 | -10/Mines | Discovered new exit (range 5) 1123 | -10/Mines | System corruption reached 10% 1123 | -10/Mines | Discovered new exit (range 5) 1150 | -10/Mines | Core integrity fell below 50% 1171 | -10/Mines | Core integrity fell below 20% 1204 | -10/Mines | Lost 5 parts (3n2w) 1346 | -10/Mines | Entered Exiles 1369 | -10/Exiles | Met 8R-AWN 1385 | -10/Exiles | Met EX-HEX 1419 | -10/Exiles | Discovered new exit (range 15) 1501 | -10/Exiles | Met EX-DEC 1512 | -10/Exiles | Met EX-BIN 1527 | -10/Exiles | Aligned with FarCom system 1528 | -10/Exiles | Given EX-Vault access code 1549 | -10/Exiles | Attacked by the Exiles 1561 | -10/Exiles | Opened EX-Vault 1569 | -10/Exiles | Found Superbattery 1575 | -10/Exiles | Destroyed by as-76826 with Assembled Rifle Last Messages --------------- Cloak of Protection Skeleton Box Trap Reconfigurator Supersonic Drone Bay Army-in-a-Box PSU Rigger Chronowheel AWS/Thermal Latent Energy Streamer Gui. Plasma Cannon Firepult YOLO Cannon AWS/Gauss XL Autogun Array AWS/Autocannon Field Lobotomy Kit Longsword +1 Deploy-a-Sentry 01566_ Dropped Ion Engine. 01569_ Acquired Superbattery. Map ----- +----------------------------------------------------+ | | | | | | | | | | | | | | | | | | | | | | | | | | | | | | | ????????????????????????##???????????????????????? | | ????????????????????####X####????????????????????? | | ????????????????????# #????????????????????? | | ????????????????????# * ! #????????????????????? | | ????????????????????# ] #????????????????????? | | ????????????????????## ##????????????????????? | | ????????????????????#X #?????????????????????? | | ????????????????????## #?????????????????????? | | ?????????????????????# #?????????????????????? | | ?????????????????????# #???###???????????????? | | ?????????????????????# @ #??"""""??????????????? | | ?????????????????????# ## """??????????????? | | ?????????????????????# X""??????????????? | | ?????????????????##### ## """??????????????? | | ?????????????##### ## #??"""""??????????????? | | ?????????????#""" ## #???###???????????????? | | ?????????????#"""" #?????????????????????? | | ?????????????#""X #?????????????????????? | | ?????????????#" #?????????????????????? | | ?????????????#" # #?????????????????????? | | ?????????????#""" # #?#########???????????? | | ?????????????##"# ### #?#"""""""#???????????? | | ????????????? "###??# #?#"""""""#???????????? | | ????????????""" ?????# aa #?#"""""""#???????????? | | ????????????""" ????## ###"" """"#???????????? | | ??????????????" ????#" """"#???????????? | | ??????????????##????#" """#???????????? | | ????????????????????#" """#???????????? | | ????????????????????#" """#???????????? | | ????????????????????#" """#???????????? | | ????????????????????#" """##??????????? | | ????????????????????## """""??????????? | | ?????????????????????# """##??????????? | | ??????""?????????????#" "X" """""??????????? | | ??????""?????????????#" """ # ??????????? | +----------------------------------------------------+ Best States ------------- Heat Dissipation 25 Energy Generation 10 Energy Capacity 250 Matter Stores 300 Matter Capacity 300 Sight Range 16 Robot Scan Range 14 Terrain Scan Density 10 Evasion (%) 55 Item Schematics ----------------- None Robot Schematics ------------------ None Fabricated ------------ Nothing Repaired ---------- Nothing Alien Tech Used ----------------- None Achievements -------------- None Challenges ------------ None Game ------ Seed MultitargetingHackingFlamer Manual? 0 Play Time 00:44:43 Cumulative 54.7 hours Start 2025.05.16 @ 13:39:01 End 2025.05.16 @ 14:43:16 Sessions 1 Manual Loads 0 Difficulty Rogue Special Mode None Game No. 28 Rogue 28 Adventurer 0 Explorer 0 Win Type - Total 0 Types 0/0/0/0/0/0/0/0/0/0 Lore% 35 Gallery% 39 Achievement% 43 Wizard Run 0 Options --------- Layout 0 ASCII 1 Keyboard 1 Movement Numpad Keybinds 0 Fullscreen 1 Font 18/SmallcapsGlow Map View 76x50 Zoom Use 0% Tactical HUD 1 Map Filters NONE Filters NONE Steam 1 RUN: 3469bb00-d695-4138-b7e9-67f141febd55